[Event "Titled Tuesday Blitz February 15 Early 2022"]
[White "Johnson, Ben"]
[Black "Kirillov, Dmitry"]
[WhiteFideId "2010917"]
[BlackFideId "34180572"]
[WhiteElo "2207"]
[BlackElo "2076"]
[Result "1/2-1/2"]
[Round "05"]
[TimeControl "180+1"]
[Date "2022.02.15"]
[WhiteClock "0:00:07"]
[BlackClock "0:00:08"]

1. Nf3 {[%clk 0:03:00]}  Nf6 {[%clk 0:02:57]} 2. c4 {[%clk 0:03:00]}  b6 {[%clk 0:02:52]} 3. g3 {[%clk 0:02:56]}  c5 {[%clk 0:02:49]} 4. Bg2 {[%clk 0:02:56]}  Bb7 {[%clk 0:02:48]} 5. O-O {[%clk 0:02:56]}  e6 {[%clk 0:02:49]} 6. b3 {[%clk 0:02:57]}  Be7 {[%clk 0:02:48]} 7. Bb2 {[%clk 0:02:56]}  O-O {[%clk 0:02:48]} 8. e3 {[%clk 0:02:51]}  d6 {[%clk 0:02:35]} 9. d4 {[%clk 0:02:46]}  cxd4 {[%clk 0:02:33]} 10. exd4 {[%clk 0:02:44]}  Nbd7 {[%clk 0:02:34]} 11. Nc3 {[%clk 0:02:39]}  a6 {[%clk 0:02:33]} 12. Nh4 {[%clk 0:02:25]}  Bxg2 {[%clk 0:02:30]} 13. Nxg2 {[%clk 0:02:26]}  d5 {[%clk 0:02:24]} 14. Qe2 {[%clk 0:02:18]}  dxc4 {[%clk 0:02:15]} 15. bxc4 {[%clk 0:02:18]}  Rc8 {[%clk 0:02:04]} 16. d5 {[%clk 0:02:12]}  exd5 {[%clk 0:02:01]} 17. Nxd5 {[%clk 0:02:11]}  Nxd5 {[%clk 0:01:36]} 18. cxd5 {[%clk 0:02:12]}  b5 {[%clk 0:01:37]} 19. a4 {[%clk 0:01:58]}  Re8 {[%clk 0:01:08]} 20. axb5 {[%clk 0:01:44]}  Bf6 {[%clk 0:01:00]} 21. Bxf6 {[%clk 0:01:42]}  Nxf6 {[%clk 0:01:00]} 22. Qd3 {[%clk 0:01:30]}  axb5 {[%clk 0:00:57]} 23. Ne3 {[%clk 0:01:27]}  Rb8 {[%clk 0:00:48]} 24. Rfb1 {[%clk 0:01:22]}  Qb6 {[%clk 0:00:34]} 25. Rb4 {[%clk 0:01:11]}  Red8 {[%clk 0:00:33]} 26. Rab1 {[%clk 0:01:08]}  Qd6 {[%clk 0:00:13]} 27. Rxb5 {[%clk 0:01:06]}  Rxb5 {[%clk 0:00:13]} 28. Rxb5 {[%clk 0:01:07]}  g6 {[%clk 0:00:12]} 29. Qb3 {[%clk 0:01:01]}  Qe5 {[%clk 0:00:11]} 30. Qd3 {[%clk 0:00:29]}  Qa1+ {[%clk 0:00:10]} 31. Kg2 {[%clk 0:00:29]}  Qe5 {[%clk 0:00:11]} 32. Rc5 {[%clk 0:00:21]}  Ne4 {[%clk 0:00:08]} 33. Ra5 {[%clk 0:00:17]}  Nf6 {[%clk 0:00:06]} 34. h3 {[%clk 0:00:16]}  Kg7 {[%clk 0:00:04]} 35. Ng4 {[%clk 0:00:15]}  Qc7 {[%clk 0:00:02]} 36. Qd4 {[%clk 0:00:13]}  Qd7 {[%clk 0:00:01]} 37. Qxf6+ {[%clk 0:00:12]}  Kf8 {[%clk 0:00:02]} 38. Qh8+ {[%clk 0:00:11]}  Ke7 {[%clk 0:00:03]} 39. d6+ {[%clk 0:00:10]}  Qxd6 {[%clk 0:00:02]} 40. Ra7+ {[%clk 0:00:10]}  Rd7 {[%clk 0:00:03]} 41. Rxd7+ {[%clk 0:00:09]}  Qxd7 {[%clk 0:00:04]} 42. Qe5+ {[%clk 0:00:09]}  Kf8 {[%clk 0:00:04]} 43. Nf6 {[%clk 0:00:08]}  Qc6+ {[%clk 0:00:04]} 44. Nd5 {[%clk 0:00:07]}  h5 {[%clk 0:00:05]} 45. h4 {[%clk 0:00:07]}  Kg8 {[%clk 0:00:05]} 46. Qe7 {[%clk 0:00:06]}  Qxd5+ {[%clk 0:00:04]} 47. Kh2 {[%clk 0:00:04]}  Kg7 {[%clk 0:00:05]} 48. Qe3 {[%clk 0:00:04]}  Qf5 {[%clk 0:00:05]} 49. Kg1 {[%clk 0:00:04]}  Qb1+ {[%clk 0:00:05]} 50. Kg2 {[%clk 0:00:05]}  Qb7+ {[%clk 0:00:06]} 51. Kg1 {[%clk 0:00:05]}  Qd7 {[%clk 0:00:06]} 52. Kg2 {[%clk 0:00:05]}  Qf5 {[%clk 0:00:07]} 53. Kg1 {[%clk 0:00:05]}  Kf6 {[%clk 0:00:08]} 54. Kg2 {[%clk 0:00:05]}  Qc2 {[%clk 0:00:07]} 55. Kg1 {[%clk 0:00:06]}  Qc6 {[%clk 0:00:08]} 56. Kh2 {[%clk 0:00:06]}  Qd5 {[%clk 0:00:08]} 57. Kg1 {[%clk 0:00:06]}  Kf5 {[%clk 0:00:08]} 58. Kh2 {[%clk 0:00:05]}  f6 {[%clk 0:00:07]} 59. Qf4+ {[%clk 0:00:04]}  Ke6 {[%clk 0:00:07]} 60. Qe3+ {[%clk 0:00:05]}  Qe5 {[%clk 0:00:07]} 61. Kg2 {[%clk 0:00:03]}  Kf5 {[%clk 0:00:05]} 62. Qf3+ {[%clk 0:00:03]}  Ke6 {[%clk 0:00:04]} 63. Qb3+ {[%clk 0:00:03]}  Qd5+ {[%clk 0:00:03]} 64. Qf3 {[%clk 0:00:01]}  Qxf3+ {[%clk 0:00:01]} 65. Kxf3 {[%clk 0:00:02]}  Kf5 {[%clk 0:00:02]} 66. Ke3 {[%clk 0:00:03]}  Kg4 {[%clk 0:00:02]} 67. Ke4 {[%clk 0:00:03]}  g5 {[%clk 0:00:02]} 68. hxg5 {[%clk 0:00:03]}  fxg5 {[%clk 0:00:03]} 69. Ke3 {[%clk 0:00:03]}  h4 {[%clk 0:00:03]} 70. gxh4 {[%clk 0:00:04]}  gxh4 {[%clk 0:00:04]} 71. f4 {[%clk 0:00:04]}  Kg3 {[%clk 0:00:04]} 72. f5 {[%clk 0:00:03]}  h3 {[%clk 0:00:04]} 73. f6 {[%clk 0:00:04]}  h2 {[%clk 0:00:05]} 74. f7 {[%clk 0:00:05]}  h1=Q {[%clk 0:00:06]} 75. f8=Q {[%clk 0:00:05]}  Qe1+ {[%clk 0:00:06]} 76. Kd4 {[%clk 0:00:05]}  Qd1+ {[%clk 0:00:07]} 77. Kc4 {[%clk 0:00:06]}  Qc2+ {[%clk 0:00:07]} 78. Kb5 {[%clk 0:00:06]}  Qb3+ {[%clk 0:00:07]} 79. Kc6 {[%clk 0:00:06]}  Qc4+ {[%clk 0:00:07]} 80. Qc5 {[%clk 0:00:06]}  Qe6+ {[%clk 0:00:07]} 81. Qd6+ {[%clk 0:00:06]}  Qxd6+ {[%clk 0:00:08]} 82. Kxd6 {[%clk 0:00:07]} 1/2-1/2


[Site "https://www.chess.com"]

[Event "Titled Tuesday Blitz February 15 Early 2022"]
[White "Karabalis, Harilos"]
[Black "Aradhya, Garg"]
[WhiteFideId "4621808"]
[BlackFideId "25006746"]
[WhiteElo "2168"]
[BlackElo "2169"]
[Result "0-1"]
[Round "05"]
[TimeControl "180+1"]
[Date "2022.02.15"]
[WhiteClock "0:00:10"]
[BlackClock "0:00:23"]

1. e4 {[%clk 0:03:00]}  e5 {[%clk 0:03:00]} 2. Nf3 {[%clk 0:03:00]}  Nc6 {[%clk 0:03:00]} 3. Bb5 {[%clk 0:03:01]}  a6 {[%clk 0:03:00]} 4. Ba4 {[%clk 0:03:02]}  Bc5 {[%clk 0:03:01]} 5. O-O {[%clk 0:03:00]}  Nge7 {[%clk 0:03:01]} 6. c3 {[%clk 0:02:59]}  Ng6 {[%clk 0:03:01]} 7. d4 {[%clk 0:02:59]}  Ba7 {[%clk 0:03:02]} 8. Bg5 {[%clk 0:02:39]}  f6 {[%clk 0:03:02]} 9. Be3 {[%clk 0:02:38]}  d6 {[%clk 0:03:01]} 10. d5 {[%clk 0:02:35]}  b5 {[%clk 0:03:01]} 11. dxc6 {[%clk 0:02:28]}  Bxe3 {[%clk 0:03:00]} 12. Bb3 {[%clk 0:02:16]}  Bb6 {[%clk 0:02:58]} 13. a4 {[%clk 0:02:15]}  Rb8 {[%clk 0:02:53]} 14. axb5 {[%clk 0:02:13]}  axb5 {[%clk 0:02:54]} 15. h3 {[%clk 0:02:11]}  Qe7 {[%clk 0:02:54]} 16. Nbd2 {[%clk 0:01:57]}  Nf4 {[%clk 0:02:50]} 17. Nh2 {[%clk 0:01:53]}  Be6 {[%clk 0:02:45]} 18. Ndf3 {[%clk 0:01:51]}  O-O {[%clk 0:02:41]} 19. Ng4 {[%clk 0:01:47]}  Rfd8 {[%clk 0:02:40]} 20. Ne3 {[%clk 0:01:45]}  Bxe3 {[%clk 0:02:28]} 21. fxe3 {[%clk 0:01:43]}  Bxb3 {[%clk 0:02:28]} 22. Qxb3+ {[%clk 0:01:42]}  Qe6 {[%clk 0:02:29]} 23. Qc2 {[%clk 0:01:38]}  Ng6 {[%clk 0:02:28]} 24. Ra7 {[%clk 0:01:35]}  Rdc8 {[%clk 0:02:26]} 25. Rd1 {[%clk 0:01:32]}  Ne7 {[%clk 0:02:25]} 26. Ra6 {[%clk 0:01:30]}  Ra8 {[%clk 0:01:38]} 27. Rda1 {[%clk 0:01:26]}  Rxa6 {[%clk 0:01:37]} 28. Rxa6 {[%clk 0:01:25]}  d5 {[%clk 0:01:37]} 29. exd5 {[%clk 0:01:25]}  Qxd5 {[%clk 0:01:36]} 30. e4 {[%clk 0:01:26]}  Qc5+ {[%clk 0:01:37]} 31. Qf2 {[%clk 0:01:25]}  Qd6 {[%clk 0:01:37]} 32. Qe2 {[%clk 0:01:13]}  Rb8 {[%clk 0:01:35]} 33. Qd2 {[%clk 0:01:02]}  Qxd2 {[%clk 0:01:05]} 34. Nxd2 {[%clk 0:01:01]}  Rb6 {[%clk 0:01:05]} 35. Ra8+ {[%clk 0:00:53]}  Kf7 {[%clk 0:01:05]} 36. Kf2 {[%clk 0:00:50]}  Rxc6 {[%clk 0:01:03]} 37. Ra7 {[%clk 0:00:46]}  b4 {[%clk 0:00:55]} 38. cxb4 {[%clk 0:00:45]}  Rc2 {[%clk 0:00:55]} 39. Ke3 {[%clk 0:00:42]}  Rxb2 {[%clk 0:00:55]} 40. Rxc7 {[%clk 0:00:42]}  Rxb4 {[%clk 0:00:56]} 41. Nc4 {[%clk 0:00:39]}  Ke6 {[%clk 0:00:55]} 42. Kd3 {[%clk 0:00:35]}  Rb3+ {[%clk 0:00:54]} 43. Ke2 {[%clk 0:00:31]}  h5 {[%clk 0:00:52]} 44. h4 {[%clk 0:00:25]}  Rc3 {[%clk 0:00:44]} 45. Kd2 {[%clk 0:00:23]}  Rb3 {[%clk 0:00:44]} 46. Ne3 {[%clk 0:00:21]}  g6 {[%clk 0:00:34]} 47. Ra7 {[%clk 0:00:19]}  Rb8 {[%clk 0:00:30]} 48. g3 {[%clk 0:00:17]}  Rd8+ {[%clk 0:00:31]} 49. Ke2 {[%clk 0:00:17]}  Rd7 {[%clk 0:00:31]} 50. Ra6+ {[%clk 0:00:16]}  Rd6 {[%clk 0:00:31]} 51. Ra8 {[%clk 0:00:17]}  f5 {[%clk 0:00:31]} 52. exf5+ {[%clk 0:00:16]}  Nxf5 {[%clk 0:00:31]} 53. Nxf5 {[%clk 0:00:14]}  Kxf5 {[%clk 0:00:31]} 54. Re8 {[%clk 0:00:12]}  Kg4 {[%clk 0:00:24]} 55. Rxe5 {[%clk 0:00:11]}  Kxg3 {[%clk 0:00:24]} 56. Re4 {[%clk 0:00:11]}  Rf6 {[%clk 0:00:24]} 57. Rd4 {[%clk 0:00:10]}  Rf4 {[%clk 0:00:23]} 58. Rd6 {[%clk 0:00:10]}  Rg4 {[%clk 0:00:23]} 59. Ke3 {[%clk 0:00:09]}  Kxh4 {[%clk 0:00:23]} 60. Kf3 {[%clk 0:00:09]}  Kg5 {[%clk 0:00:23]} 61. Ke3 {[%clk 0:00:08]}  Rg3+ {[%clk 0:00:21]} 62. Kf2 {[%clk 0:00:08]}  h4 {[%clk 0:00:21]} 63. Rc6 {[%clk 0:00:07]}  Rg4 {[%clk 0:00:21]} 64. Rd6 {[%clk 0:00:07]}  Rf4+ {[%clk 0:00:21]} 65. Kg2 {[%clk 0:00:07]}  Kh5 {[%clk 0:00:21]} 66. Kh3 {[%clk 0:00:07]}  g5 {[%clk 0:00:21]} 67. Rd8 {[%clk 0:00:07]}  Rf3+ {[%clk 0:00:21]} 68. Kg2 {[%clk 0:00:07]}  Kg4 {[%clk 0:00:22]} 69. Rd4+ {[%clk 0:00:08]}  Rf4 {[%clk 0:00:22]} 70. Rd8 {[%clk 0:00:08]}  h3+ {[%clk 0:00:22]} 71. Kh2 {[%clk 0:00:09]}  Rf2+ {[%clk 0:00:22]} 72. Kg1 {[%clk 0:00:09]}  Kg3 {[%clk 0:00:22]} 73. Rd3+ {[%clk 0:00:09]}  Rf3 {[%clk 0:00:22]} 74. Rd2 {[%clk 0:00:10]}  h2+ {[%clk 0:00:20]} 75. Rxh2 {[%clk 0:00:09]}  Rf1+ {[%clk 0:00:21]} 76. Kxf1 {[%clk 0:00:09]}  Kxh2 {[%clk 0:00:21]} 77. Ke2 {[%clk 0:00:09]}  g4 {[%clk 0:00:22]} 78. Ke3 {[%clk 0:00:10]}  g3 {[%clk 0:00:23]} 0-1


[Site "https://www.chess.com"]

[Event "Titled Tuesday Blitz February 15 Early 2022"]
[White "Khoroshev, Nikita"]
[Black "Hakobyan, Aram"]
[WhiteFideId "14200287"]
[BlackFideId "13306677"]
[WhiteElo "2354"]
[BlackElo "2557"]
[Result "1-0"]
[Round "05"]
[TimeControl "180+1"]
[Date "2022.02.15"]
[WhiteClock "0:00:20"]
[BlackClock "0:00:02"]

1. d4 {[%clk 0:03:00]}  e6 {[%clk 0:02:53]} 2. e4 {[%clk 0:02:59]}  d5 {[%clk 0:02:53]} 3. Nc3 {[%clk 0:03:00]}  Nf6 {[%clk 0:02:51]} 4. Bg5 {[%clk 0:02:59]}  h6 {[%clk 0:02:51]} 5. Bxf6 {[%clk 0:02:56]}  Qxf6 {[%clk 0:02:52]} 6. exd5 {[%clk 0:02:55]}  Bb4 {[%clk 0:02:53]} 7. dxe6 {[%clk 0:02:44]}  Bxe6 {[%clk 0:02:49]} 8. Nf3 {[%clk 0:02:43]}  O-O {[%clk 0:02:48]} 9. Bd3 {[%clk 0:02:41]}  c5 {[%clk 0:02:10]} 10. O-O {[%clk 0:02:40]}  Bxc3 {[%clk 0:02:08]} 11. bxc3 {[%clk 0:02:39]}  Bd5 {[%clk 0:01:54]} 12. c4 {[%clk 0:02:25]}  Bxf3 {[%clk 0:01:54]} 13. Qxf3 {[%clk 0:02:26]}  Qxf3 {[%clk 0:01:53]} 14. gxf3 {[%clk 0:02:27]}  cxd4 {[%clk 0:01:53]} 15. Rab1 {[%clk 0:02:27]}  Nd7 {[%clk 0:01:47]} 16. Rxb7 {[%clk 0:02:26]}  Nc5 {[%clk 0:01:43]} 17. Rc7 {[%clk 0:02:26]}  Rfc8 {[%clk 0:01:41]} 18. Rxc8+ {[%clk 0:02:26]}  Rxc8 {[%clk 0:01:42]} 19. Rb1 {[%clk 0:02:25]}  g6 {[%clk 0:01:39]} 20. Kg2 {[%clk 0:02:23]}  Kg7 {[%clk 0:01:37]} 21. f4 {[%clk 0:02:23]}  Kf6 {[%clk 0:01:31]} 22. Kf3 {[%clk 0:02:23]}  g5 {[%clk 0:01:31]} 23. a4 {[%clk 0:02:12]}  Rc7 {[%clk 0:01:17]} 24. a5 {[%clk 0:02:11]}  Ne6 {[%clk 0:01:18]} 25. fxg5+ {[%clk 0:02:08]}  hxg5 {[%clk 0:01:19]} 26. Rb8 {[%clk 0:02:07]}  Nc5 {[%clk 0:01:18]} 27. Rd8 {[%clk 0:02:04]}  Ne6 {[%clk 0:01:17]} 28. Rd5 {[%clk 0:02:04]}  Ke7 {[%clk 0:01:05]} 29. Kg4 {[%clk 0:01:53]}  Rc8 {[%clk 0:01:03]} 30. h4 {[%clk 0:01:49]}  gxh4 {[%clk 0:01:03]} 31. Kxh4 {[%clk 0:01:50]}  Rg8 {[%clk 0:00:58]} 32. c5 {[%clk 0:01:32]}  Kf6 {[%clk 0:00:25]} 33. c6 {[%clk 0:01:17]}  Rc8 {[%clk 0:00:25]} 34. Be4 {[%clk 0:01:14]}  Rc7 {[%clk 0:00:20]} 35. Kg3 {[%clk 0:01:10]}  Ke7 {[%clk 0:00:19]} 36. Rb5 {[%clk 0:01:08]}  Kd6 {[%clk 0:00:18]} 37. Bg2 {[%clk 0:00:49]}  Nc5 {[%clk 0:00:18]} 38. Rb4 {[%clk 0:00:47]}  Ne6 {[%clk 0:00:11]} 39. Rb5 {[%clk 0:00:47]}  Nc5 {[%clk 0:00:09]} 40. Kf4 {[%clk 0:00:47]}  f6 {[%clk 0:00:01]} 41. Rb4 {[%clk 0:00:45]}  Ne6+ {[%clk 0:00:01]} 42. Kf5 {[%clk 0:00:44]}  Rg7 {[%clk 0:00:02]} 43. Bf3 {[%clk 0:00:29]}  Rg5+ {[%clk 0:00:02]} 44. Kxf6 {[%clk 0:00:27]}  Rc5 {[%clk 0:00:03]} 45. Bg4 {[%clk 0:00:25]}  Nc7 {[%clk 0:00:04]} 46. Rxd4+ {[%clk 0:00:24]}  Nd5+ {[%clk 0:00:04]} 47. Kf7 {[%clk 0:00:23]}  Rxc2 {[%clk 0:00:01]} 48. Bf3 {[%clk 0:00:22]}  Rxf2 {[%clk 0:00:02]} 49. Rxd5+ {[%clk 0:00:22]}  Kxc6 {[%clk 0:00:03]} 50. Rf5+ {[%clk 0:00:23]}  Kc7 {[%clk 0:00:02]} 51. Ke6 {[%clk 0:00:22]}  Rf1 {[%clk 0:00:02]} 52. Bd5 {[%clk 0:00:20]} 1-0


[Site "https://www.chess.com"]

[Event "Titled Tuesday Blitz February 15 Early 2022"]
[White "Khripachenko, Alexander"]
[Black "Timofeev, Artyom"]
[WhiteFideId "54184975"]
[BlackFideId "4140419"]
[WhiteElo "2612"]
[BlackElo "2890"]
[Result "1/2-1/2"]
[Round "05"]
[TimeControl "180+1"]
[Date "2022.02.15"]
[WhiteClock "0:00:12"]
[BlackClock "0:01:00"]

1. e4 {[%clk 0:03:00]}  c5 {[%clk 0:02:59]} 2. Nf3 {[%clk 0:02:59]}  d6 {[%clk 0:02:59]} 3. d4 {[%clk 0:02:59]}  cxd4 {[%clk 0:02:59]} 4. Qxd4 {[%clk 0:03:00]}  Nc6 {[%clk 0:02:58]} 5. Qe3 {[%clk 0:03:00]}  g6 {[%clk 0:02:55]} 6. h3 {[%clk 0:03:00]}  Bg7 {[%clk 0:02:55]} 7. Be2 {[%clk 0:03:00]}  Nf6 {[%clk 0:02:54]} 8. O-O {[%clk 0:03:00]}  O-O {[%clk 0:02:54]} 9. c4 {[%clk 0:03:01]}  b6 {[%clk 0:02:49]} 10. Nc3 {[%clk 0:03:00]}  Bb7 {[%clk 0:02:49]} 11. Rd1 {[%clk 0:03:01]}  Nd7 {[%clk 0:02:47]} 12. Rb1 {[%clk 0:03:01]}  Nc5 {[%clk 0:02:45]} 13. b4 {[%clk 0:02:48]}  Nd7 {[%clk 0:02:44]} 14. a3 {[%clk 0:02:35]}  Rc8 {[%clk 0:02:43]} 15. Bb2 {[%clk 0:02:34]}  Nce5 {[%clk 0:02:43]} 16. Nd2 {[%clk 0:02:19]}  a6 {[%clk 0:02:37]} 17. Rbc1 {[%clk 0:02:19]}  e6 {[%clk 0:02:31]} 18. Ba1 {[%clk 0:02:15]}  Qe7 {[%clk 0:02:30]} 19. Na4 {[%clk 0:02:12]}  Rb8 {[%clk 0:02:13]} 20. f4 {[%clk 0:01:54]}  Nc6 {[%clk 0:02:09]} 21. Bxg7 {[%clk 0:01:54]}  Kxg7 {[%clk 0:02:09]} 22. Nxb6 {[%clk 0:01:51]}  Nxb6 {[%clk 0:02:08]} 23. Qxb6 {[%clk 0:01:51]}  e5 {[%clk 0:02:09]} 24. Qe3 {[%clk 0:01:42]}  Nd4 {[%clk 0:02:08]} 25. fxe5 {[%clk 0:01:31]}  dxe5 {[%clk 0:02:04]} 26. Nf3 {[%clk 0:01:31]}  Nxf3+ {[%clk 0:01:46]} 27. Bxf3 {[%clk 0:01:31]}  Bc6 {[%clk 0:01:47]} 28. Be2 {[%clk 0:01:28]}  Qh4 {[%clk 0:01:42]} 29. Bf3 {[%clk 0:01:22]}  Rfd8 {[%clk 0:01:37]} 30. Qc5 {[%clk 0:00:53]}  Qf6 {[%clk 0:01:33]} 31. Rxd8 {[%clk 0:00:30]}  Rxd8 {[%clk 0:01:33]} 32. b5 {[%clk 0:00:31]}  axb5 {[%clk 0:01:28]} 33. cxb5 {[%clk 0:00:32]}  Bb7 {[%clk 0:01:28]} 34. a4 {[%clk 0:00:32]}  Rd3 {[%clk 0:01:16]} 35. Rc3 {[%clk 0:00:22]}  Rd4 {[%clk 0:01:03]} 36. Rc4 {[%clk 0:00:17]}  Rd3 {[%clk 0:01:02]} 37. Rc3 {[%clk 0:00:13]}  Rd4 {[%clk 0:01:03]} 38. Rc4 {[%clk 0:00:12]}  Rd3 {[%clk 0:01:00]} 39. Rc3 {[%clk 0:00:12]} 1/2-1/2


[Site "https://www.chess.com"]

[Event "Titled Tuesday Blitz February 15 Early 2022"]
[White "Kovanova, Baira"]
[Black "Moiseenko, Alexander"]
[WhiteFideId "4164083"]
[BlackFideId "14102560"]
[WhiteElo "2498"]
[BlackElo "2737"]
[Result "1/2-1/2"]
[Round "05"]
[TimeControl "180+1"]
[Date "2022.02.15"]
[WhiteClock "0:00:07"]
[BlackClock "0:00:04"]

1. e4 {[%clk 0:03:00]}  c5 {[%clk 0:02:55]} 2. Nf3 {[%clk 0:02:59]}  e6 {[%clk 0:02:54]} 3. d3 {[%clk 0:02:52]}  Nc6 {[%clk 0:02:51]} 4. g3 {[%clk 0:02:51]}  d5 {[%clk 0:02:51]} 5. Qe2 {[%clk 0:02:51]}  Nf6 {[%clk 0:02:48]} 6. Bg2 {[%clk 0:02:50]}  Be7 {[%clk 0:02:48]} 7. O-O {[%clk 0:02:50]}  b6 {[%clk 0:02:46]} 8. Re1 {[%clk 0:02:47]}  Bb7 {[%clk 0:02:45]} 9. h4 {[%clk 0:02:27]}  h6 {[%clk 0:02:30]} 10. c3 {[%clk 0:02:16]}  O-O {[%clk 0:01:52]} 11. e5 {[%clk 0:02:06]}  Nd7 {[%clk 0:01:52]} 12. c4 {[%clk 0:01:58]}  dxc4 {[%clk 0:01:43]} 13. dxc4 {[%clk 0:01:58]}  Qc7 {[%clk 0:01:43]} 14. Nc3 {[%clk 0:01:04]}  a6 {[%clk 0:01:40]} 15. Bf4 {[%clk 0:01:03]}  Nd4 {[%clk 0:01:29]} 16. Qd3 {[%clk 0:00:49]}  Nxf3+ {[%clk 0:01:16]} 17. Bxf3 {[%clk 0:00:49]}  Rfd8 {[%clk 0:01:16]} 18. Nd5 {[%clk 0:00:34]}  exd5 {[%clk 0:01:11]} 19. e6 {[%clk 0:00:34]}  Bd6 {[%clk 0:00:54]} 20. Bxd6 {[%clk 0:00:23]}  Qxd6 {[%clk 0:00:54]} 21. exd7 {[%clk 0:00:23]}  Rxd7 {[%clk 0:00:47]} 22. cxd5 {[%clk 0:00:23]}  Bxd5 {[%clk 0:00:44]} 23. Rad1 {[%clk 0:00:22]}  Rad8 {[%clk 0:00:43]} 24. Qxa6 {[%clk 0:00:17]}  Qc6 {[%clk 0:00:35]} 25. Bxd5 {[%clk 0:00:16]}  Rxd5 {[%clk 0:00:35]} 26. Rxd5 {[%clk 0:00:16]}  Rxd5 {[%clk 0:00:36]} 27. Qe2 {[%clk 0:00:15]}  Qd7 {[%clk 0:00:26]} 28. Qf3 {[%clk 0:00:13]}  Rd2 {[%clk 0:00:22]} 29. Re2 {[%clk 0:00:13]}  Rxe2 {[%clk 0:00:17]} 30. Qxe2 {[%clk 0:00:13]}  Qd5 {[%clk 0:00:16]} 31. b3 {[%clk 0:00:12]}  g6 {[%clk 0:00:16]} 32. Qc2 {[%clk 0:00:11]}  Qd4 {[%clk 0:00:13]} 33. Qe2 {[%clk 0:00:11]}  Kg7 {[%clk 0:00:12]} 34. a4 {[%clk 0:00:10]}  h5 {[%clk 0:00:09]} 35. Qb5 {[%clk 0:00:10]}  Qd1+ {[%clk 0:00:07]} 36. Kg2 {[%clk 0:00:11]}  Qd5+ {[%clk 0:00:07]} 37. Kg1 {[%clk 0:00:11]}  Qe6 {[%clk 0:00:07]} 38. Kg2 {[%clk 0:00:11]}  f5 {[%clk 0:00:06]} 39. Kg1 {[%clk 0:00:10]}  f4 {[%clk 0:00:06]} 40. gxf4 {[%clk 0:00:09]}  Qg4+ {[%clk 0:00:05]} 41. Kf1 {[%clk 0:00:09]}  Qxh4 {[%clk 0:00:05]} 42. Qxb6 {[%clk 0:00:08]}  Qh1+ {[%clk 0:00:05]} 43. Ke2 {[%clk 0:00:08]}  Qe4+ {[%clk 0:00:06]} 44. Kf1 {[%clk 0:00:08]}  h4 {[%clk 0:00:05]} 45. Qc7+ {[%clk 0:00:07]}  Kh6 {[%clk 0:00:05]} 46. Qe5 {[%clk 0:00:07]}  Qh1+ {[%clk 0:00:03]} 47. Ke2 {[%clk 0:00:07]}  Kh7 {[%clk 0:00:03]} 48. Qe7+ {[%clk 0:00:06]}  Kh6 {[%clk 0:00:04]} 49. Qe5 {[%clk 0:00:07]}  Kh7 {[%clk 0:00:04]} 50. Qe7+ {[%clk 0:00:07]}  Kh6 {[%clk 0:00:04]} 51. Qe5 {[%clk 0:00:07]} 1/2-1/2


[Site "https://www.chess.com"]

[Event "Titled Tuesday Blitz February 15 Early 2022"]
[White "Kozin, Yuri"]
[Black "Shukhman, Anna"]
[WhiteFideId "4129920"]
[BlackFideId "54180058"]
[WhiteElo "2537"]
[BlackElo "1628"]
[Result "1-0"]
[Round "05"]
[TimeControl "180+1"]
[Date "2022.02.15"]
[WhiteClock "0:01:54"]
[BlackClock "0:01:10"]

1. e4 {[%clk 0:03:00]}  c5 {[%clk 0:02:59]} 2. Nf3 {[%clk 0:03:00]}  e6 {[%clk 0:02:58]} 3. d4 {[%clk 0:03:00]}  cxd4 {[%clk 0:02:58]} 4. Nxd4 {[%clk 0:03:01]}  Nf6 {[%clk 0:02:55]} 5. Bd3 {[%clk 0:03:01]}  Nc6 {[%clk 0:02:54]} 6. Nb3 {[%clk 0:03:00]}  d5 {[%clk 0:02:54]} 7. exd5 {[%clk 0:03:00]}  exd5 {[%clk 0:02:55]} 8. O-O {[%clk 0:03:00]}  Bd6 {[%clk 0:02:54]} 9. Nc3 {[%clk 0:02:57]}  O-O {[%clk 0:02:48]} 10. Bg5 {[%clk 0:02:55]}  h6 {[%clk 0:02:45]} 11. Bh4 {[%clk 0:02:55]}  Be6 {[%clk 0:02:41]} 12. Bg3 {[%clk 0:02:54]}  Ne5 {[%clk 0:02:39]} 13. Be2 {[%clk 0:02:51]}  Nc6 {[%clk 0:02:22]} 14. Nb5 {[%clk 0:02:45]}  Bxg3 {[%clk 0:02:21]} 15. hxg3 {[%clk 0:02:46]}  Ne4 {[%clk 0:02:11]} 16. N5d4 {[%clk 0:02:46]}  Qf6 {[%clk 0:02:09]} 17. Bf3 {[%clk 0:02:42]}  Rac8 {[%clk 0:01:43]} 18. c3 {[%clk 0:02:41]}  Ne5 {[%clk 0:01:41]} 19. Nxe6 {[%clk 0:02:38]}  Qxe6 {[%clk 0:01:35]} 20. Re1 {[%clk 0:02:30]}  Rcd8 {[%clk 0:01:22]} 21. Nd4 {[%clk 0:02:28]}  Qg6 {[%clk 0:01:21]} 22. Qc2 {[%clk 0:02:16]}  Nxf3+ {[%clk 0:01:17]} 23. gxf3 {[%clk 0:02:11]}  Nc5 {[%clk 0:01:15]} 24. Qxg6 {[%clk 0:01:55]}  fxg6 {[%clk 0:01:16]} 25. Re7 {[%clk 0:01:55]}  Rxf3 {[%clk 0:01:10]} 26. Nxf3 {[%clk 0:01:54]} 1-0


[Site "https://www.chess.com"]

[Event "Titled Tuesday Blitz February 15 Early 2022"]
[White "Leve, Nitai"]
[Black "Do Valle Cardoso, Lucas"]
[WhiteFideId "2006898"]
[BlackFideId "2163144"]
[WhiteElo "2144"]
[BlackElo "2357"]
[Result "0-1"]
[Round "05"]
[TimeControl "180+1"]
[Date "2022.02.15"]
[WhiteClock "0:00:17"]
[BlackClock "0:01:47"]

1. e4 {[%clk 0:03:00]}  e5 {[%clk 0:02:59]} 2. Nf3 {[%clk 0:02:56]}  Nc6 {[%clk 0:02:58]} 3. Bb5 {[%clk 0:02:54]}  f5 {[%clk 0:02:58]} 4. Nc3 {[%clk 0:02:31]}  fxe4 {[%clk 0:02:43]} 5. Bxc6 {[%clk 0:02:25]}  dxc6 {[%clk 0:02:41]} 6. Nxe5 {[%clk 0:02:22]}  Nf6 {[%clk 0:02:33]} 7. d4 {[%clk 0:02:02]}  exd3 {[%clk 0:02:29]} 8. Qxd3 {[%clk 0:01:52]}  Bd6 {[%clk 0:02:23]} 9. Bf4 {[%clk 0:01:42]}  O-O {[%clk 0:02:11]} 10. Qc4+ {[%clk 0:01:25]}  Nd5 {[%clk 0:02:11]} 11. Nxd5 {[%clk 0:01:06]}  Be6 {[%clk 0:02:09]} 12. O-O-O {[%clk 0:00:56]}  cxd5 {[%clk 0:01:55]} 13. Qd4 {[%clk 0:00:25]}  c5 {[%clk 0:01:55]} 14. Qd2 {[%clk 0:00:25]}  Qf6 {[%clk 0:01:50]} 15. Bg5 {[%clk 0:00:16]}  Qxe5 {[%clk 0:01:49]} 16. Rhe1 {[%clk 0:00:17]}  Qf5 {[%clk 0:01:47]} 0-1


[Site "https://www.chess.com"]